[Event "Titled Tuesday Blitz March 07 Early 2023"]
[White "Garrido, Denis"]
[Black "Ezat, Mohamed"]
[WhiteFideId "601217"]
[BlackFideId "10600906"]
[WhiteElo "2272"]
[BlackElo "2386"]
[Result "0-1"]
[Round "11"]
[TimeControl "180+2"]
[Date "2023.03.07"]
[WhiteClock "0:00:12"]
[BlackClock "0:00:30"]

1. e4 {[%clk 0:03:00]}  c6 {[%clk 0:02:53]} 2. d4 {[%clk 0:03:00]}  d5 {[%clk 0:02:54]} 3. e5 {[%clk 0:02:58]}  c5 {[%clk 0:02:54]} 4. dxc5 {[%clk 0:02:58]}  e6 {[%clk 0:02:54]} 5. Nf3 {[%clk 0:02:57]}  Bxc5 {[%clk 0:02:52]} 6. a3 {[%clk 0:02:57]}  Nc6 {[%clk 0:02:52]} 7. b4 {[%clk 0:02:57]}  Bb6 {[%clk 0:02:52]} 8. Bb2 {[%clk 0:02:56]}  Nge7 {[%clk 0:02:52]} 9. Bd3 {[%clk 0:02:55]}  Ng6 {[%clk 0:02:52]} 10. O-O {[%clk 0:02:53]}  Nf4 {[%clk 0:02:51]} 11. c4 {[%clk 0:02:49]}  Nxd3 {[%clk 0:02:50]} 12. Qxd3 {[%clk 0:02:50]}  dxc4 {[%clk 0:02:49]} 13. Qxc4 {[%clk 0:02:45]}  O-O {[%clk 0:02:49]} 14. Nc3 {[%clk 0:02:43]}  Nd4 {[%clk 0:02:47]} 15. Kh1 {[%clk 0:02:24]}  Nxf3 {[%clk 0:02:43]} 16. gxf3 {[%clk 0:02:25]}  Bd7 {[%clk 0:02:43]} 17. Rad1 {[%clk 0:02:19]}  Qe7 {[%clk 0:02:29]} 18. Qg4 {[%clk 0:02:12]}  Bc6 {[%clk 0:02:27]} 19. Ne4 {[%clk 0:02:04]}  Rad8 {[%clk 0:01:57]} 20. Nf6+ {[%clk 0:01:50]}  Kh8 {[%clk 0:01:55]} 21. Rxd8 {[%clk 0:01:50]}  Qxd8 {[%clk 0:01:33]} 22. Rg1 {[%clk 0:01:37]}  g6 {[%clk 0:01:28]} 23. Qh3 {[%clk 0:01:06]}  Qxf6 {[%clk 0:00:52]} 24. exf6 {[%clk 0:01:04]}  Rd8 {[%clk 0:00:52]} 25. Kg2 {[%clk 0:00:45]}  Rd2 {[%clk 0:00:50]} 26. Rf1 {[%clk 0:00:40]}  h5 {[%clk 0:00:46]} 27. Be5 {[%clk 0:00:30]}  Rd3 {[%clk 0:00:44]} 28. Qg3 {[%clk 0:00:21]}  Kh7 {[%clk 0:00:42]} 29. Qf4 {[%clk 0:00:19]}  Rxa3 {[%clk 0:00:38]} 30. Re1 {[%clk 0:00:19]}  Rb3 {[%clk 0:00:35]} 31. Bd6 {[%clk 0:00:18]}  Rb2 {[%clk 0:00:33]} 32. Bf8 {[%clk 0:00:14]}  Rxf2+ {[%clk 0:00:32]} 33. Kg3 {[%clk 0:00:12]}  Kg8 {[%clk 0:00:32]} 34. Qh6 {[%clk 0:00:11]}  Rxf3+ {[%clk 0:00:31]} 35. Kh4 {[%clk 0:00:12]}  Bf2+ {[%clk 0:00:29]} 36. Kg5 {[%clk 0:00:12]}  Rf5# {[%clk 0:00:30]} 0-1


[Site "https://www.chess.com"]

[Event "Titled Tuesday Blitz March 07 Early 2023"]
[White "Kalajzic, Ivan"]
[Black "Delorme, Alban"]
[WhiteFideId "14506378"]
[BlackFideId "623636"]
[WhiteElo "2203"]
[BlackElo "2196"]
[Result "0-1"]
[Round "11"]
[TimeControl "180+2"]
[Date "2023.03.07"]
[WhiteClock "0:00:26"]
[BlackClock "0:00:02"]

1. d4 {[%clk 0:03:00]}  Nf6 {[%clk 0:02:58]} 2. Nc3 {[%clk 0:03:01]}  d5 {[%clk 0:02:56]} 3. Bg5 {[%clk 0:03:01]}  e6 {[%clk 0:02:53]} 4. e4 {[%clk 0:03:01]}  dxe4 {[%clk 0:02:52]} 5. Nxe4 {[%clk 0:03:01]}  Be7 {[%clk 0:02:53]} 6. Bxf6 {[%clk 0:03:02]}  Bxf6 {[%clk 0:02:53]} 7. Nf3 {[%clk 0:03:02]}  b6 {[%clk 0:02:48]} 8. c3 {[%clk 0:03:02]}  Bb7 {[%clk 0:02:48]} 9. Bd3 {[%clk 0:03:03]}  Nd7 {[%clk 0:02:48]} 10. Qc2 {[%clk 0:03:03]}  O-O {[%clk 0:02:47]} 11. h4 {[%clk 0:03:03]}  c5 {[%clk 0:02:45]} 12. dxc5 {[%clk 0:02:56]}  Nxc5 {[%clk 0:02:45]} 13. Nxc5 {[%clk 0:02:48]}  bxc5 {[%clk 0:02:46]} 14. O-O-O {[%clk 0:02:47]}  Qa5 {[%clk 0:02:41]} 15. Bxh7+ {[%clk 0:02:41]}  Kh8 {[%clk 0:02:41]} 16. Be4 {[%clk 0:02:42]}  Bxe4 {[%clk 0:02:37]} 17. Qxe4 {[%clk 0:02:42]}  Qxa2 {[%clk 0:02:37]} 18. Ng5 {[%clk 0:02:32]}  g6 {[%clk 0:02:37]} 19. f4 {[%clk 0:02:24]}  Rab8 {[%clk 0:02:06]} 20. Qb1 {[%clk 0:02:13]}  Qa4 {[%clk 0:01:58]} 21. Ne4 {[%clk 0:01:53]}  Rfd8 {[%clk 0:01:20]} 22. h5 {[%clk 0:01:39]}  Rxd1+ {[%clk 0:01:14]} 23. Rxd1 {[%clk 0:01:39]}  gxh5 {[%clk 0:00:59]} 24. Rh1 {[%clk 0:01:22]}  h4 {[%clk 0:00:46]} 25. g3 {[%clk 0:01:09]}  Qc6 {[%clk 0:00:27]} 26. Rh2 {[%clk 0:00:56]}  Kg7 {[%clk 0:00:19]} 27. Qd3 {[%clk 0:00:47]}  Rd8 {[%clk 0:00:17]} 28. Qf3 {[%clk 0:00:43]}  c4 {[%clk 0:00:14]} 29. Qg4+ {[%clk 0:00:39]}  Kf8 {[%clk 0:00:14]} 30. Nxf6 {[%clk 0:00:38]}  Qd6 {[%clk 0:00:05]} 31. Nh7+ {[%clk 0:00:27]}  Ke8 {[%clk 0:00:03]} 32. Qg5 {[%clk 0:00:26]}  Qd1# {[%clk 0:00:02]} 0-1


[Site "https://www.chess.com"]

[Event "Titled Tuesday Blitz March 07 Early 2023"]
[White "Iskusnyh, Sergei"]
[Black "Gonzalez, Francisco Silva"]
[WhiteFideId "4120027"]
[BlackFideId "1512285"]
[WhiteElo "2492"]
[BlackElo "2074"]
[Result "1-0"]
[Round "11"]
[TimeControl "180+2"]
[Date "2023.03.07"]
[WhiteClock "0:00:09"]
[BlackClock "0:00:08"]

1. d4 {[%clk 0:03:00]}  Nf6 {[%clk 0:02:52]} 2. c4 {[%clk 0:02:49]}  e6 {[%clk 0:02:52]} 3. g3 {[%clk 0:02:44]}  d5 {[%clk 0:02:51]} 4. Bg2 {[%clk 0:02:45]}  dxc4 {[%clk 0:02:51]} 5. Nf3 {[%clk 0:02:44]}  Nc6 {[%clk 0:02:50]} 6. O-O {[%clk 0:02:43]}  Rb8 {[%clk 0:02:50]} 7. e3 {[%clk 0:02:42]}  Be7 {[%clk 0:02:49]} 8. Nfd2 {[%clk 0:02:36]}  e5 {[%clk 0:02:49]} 9. Nxc4 {[%clk 0:02:23]}  exd4 {[%clk 0:02:47]} 10. exd4 {[%clk 0:02:23]}  Nxd4 {[%clk 0:02:36]} 11. Nc3 {[%clk 0:02:12]}  O-O {[%clk 0:02:35]} 12. Bf4 {[%clk 0:02:12]}  Bg4 {[%clk 0:02:29]} 13. f3 {[%clk 0:01:46]}  Be6 {[%clk 0:02:26]} 14. Ne5 {[%clk 0:01:38]}  Bc5 {[%clk 0:02:05]} 15. Kh1 {[%clk 0:01:37]}  Nf5 {[%clk 0:01:53]} 16. Qc1 {[%clk 0:01:29]}  Nd5 {[%clk 0:01:44]} 17. Ne4 {[%clk 0:01:15]}  Nxf4 {[%clk 0:01:40]} 18. Qxc5 {[%clk 0:01:01]}  Nxg2 {[%clk 0:01:39]} 19. Kxg2 {[%clk 0:01:02]}  Qd5 {[%clk 0:01:26]} 20. Qxd5 {[%clk 0:00:54]}  Bxd5 {[%clk 0:01:26]} 21. Rfe1 {[%clk 0:00:51]}  Rfe8 {[%clk 0:01:19]} 22. Nd7 {[%clk 0:00:51]}  Be6 {[%clk 0:00:58]} 23. Nxb8 {[%clk 0:00:50]}  Rxb8 {[%clk 0:00:59]} 24. Rad1 {[%clk 0:00:48]}  c6 {[%clk 0:00:57]} 25. g4 {[%clk 0:00:42]}  Nh4+ {[%clk 0:00:55]} 26. Kg3 {[%clk 0:00:41]}  Ng6 {[%clk 0:00:54]} 27. a3 {[%clk 0:00:40]}  h6 {[%clk 0:00:53]} 28. Nc3 {[%clk 0:00:28]}  Nf8 {[%clk 0:00:40]} 29. f4 {[%clk 0:00:28]}  g6 {[%clk 0:00:40]} 30. Rd4 {[%clk 0:00:27]}  c5 {[%clk 0:00:36]} 31. Rd6 {[%clk 0:00:26]}  Rc8 {[%clk 0:00:35]} 32. Red1 {[%clk 0:00:26]}  Kg7 {[%clk 0:00:30]} 33. Rd8 {[%clk 0:00:26]}  Rc6 {[%clk 0:00:30]} 34. Rb8 {[%clk 0:00:26]}  Rb6 {[%clk 0:00:30]} 35. Rd2 {[%clk 0:00:25]}  c4 {[%clk 0:00:27]} 36. Ne4 {[%clk 0:00:23]}  Nd7 {[%clk 0:00:26]} 37. Rd8 {[%clk 0:00:22]}  Nf6 {[%clk 0:00:22]} 38. Nxf6 {[%clk 0:00:22]}  Kxf6 {[%clk 0:00:21]} 39. R8d6 {[%clk 0:00:22]}  Rb3+ {[%clk 0:00:21]} 40. Kf2 {[%clk 0:00:22]}  Ke7 {[%clk 0:00:22]} 41. f5 {[%clk 0:00:20]}  gxf5 {[%clk 0:00:19]} 42. gxf5 {[%clk 0:00:21]}  Bxf5 {[%clk 0:00:20]} 43. Rxh6 {[%clk 0:00:21]}  Be6 {[%clk 0:00:19]} 44. h4 {[%clk 0:00:20]}  c3 {[%clk 0:00:19]} 45. bxc3 {[%clk 0:00:20]}  Rxc3 {[%clk 0:00:20]} 46. Rb2 {[%clk 0:00:19]}  b6 {[%clk 0:00:18]} 47. a4 {[%clk 0:00:19]}  Ra3 {[%clk 0:00:18]} 48. Rb4 {[%clk 0:00:19]}  Kf8 {[%clk 0:00:17]} 49. Rh5 {[%clk 0:00:17]}  Ke7 {[%clk 0:00:16]} 50. Rg5 {[%clk 0:00:18]}  Rh3 {[%clk 0:00:16]} 51. Rg3 {[%clk 0:00:17]}  Rh2+ {[%clk 0:00:15]} 52. Ke3 {[%clk 0:00:17]}  Kf6 {[%clk 0:00:14]} 53. Rf4+ {[%clk 0:00:16]}  Ke5 {[%clk 0:00:14]} 54. Rg5+ {[%clk 0:00:15]}  Kd6 {[%clk 0:00:15]} 55. h5 {[%clk 0:00:16]}  f5 {[%clk 0:00:14]} 56. Rd4+ {[%clk 0:00:14]}  Ke5 {[%clk 0:00:14]} 57. Rd8 {[%clk 0:00:13]}  Rh3+ {[%clk 0:00:13]} 58. Kd2 {[%clk 0:00:13]}  Kf4 {[%clk 0:00:14]} 59. Rg6 {[%clk 0:00:12]}  Bc4 {[%clk 0:00:14]} 60. Rd4+ {[%clk 0:00:11]}  Ke5 {[%clk 0:00:13]} 61. Rxc4 {[%clk 0:00:12]}  Rxh5 {[%clk 0:00:13]} 62. Rg7 {[%clk 0:00:12]}  a6 {[%clk 0:00:13]} 63. Rc6 {[%clk 0:00:12]}  Rh4 {[%clk 0:00:12]} 64. Rxb6 {[%clk 0:00:11]}  Rxa4 {[%clk 0:00:12]} 65. Re7+ {[%clk 0:00:11]}  Kf4 {[%clk 0:00:11]} 66. Ra7 {[%clk 0:00:11]}  Kg5 {[%clk 0:00:12]} 67. Raxa6 {[%clk 0:00:11]}  Rd4+ {[%clk 0:00:12]} 68. Ke3 {[%clk 0:00:10]}  Re4+ {[%clk 0:00:12]} 69. Kf3 {[%clk 0:00:10]}  Rf4+ {[%clk 0:00:13]} 70. Ke3 {[%clk 0:00:09]}  Re4+ {[%clk 0:00:13]} 71. Kd3 {[%clk 0:00:10]}  Rf4 {[%clk 0:00:14]} 72. Rg6+ {[%clk 0:00:10]}  Kh4 {[%clk 0:00:12]} 73. Rg8 {[%clk 0:00:10]}  Rf3+ {[%clk 0:00:10]} 74. Ke2 {[%clk 0:00:09]}  Re3+ {[%clk 0:00:08]} 75. Kxe3 {[%clk 0:00:09]} 1-0


[Site "https://www.chess.com"]

[Event "Titled Tuesday Blitz March 07 Early 2023"]
[White "Heinemann, Josefine"]
[Black "Moksh Amit Doshi"]
[WhiteFideId "12900460"]
[BlackFideId "25064967"]
[WhiteElo "2342"]
[BlackElo "2297"]
[Result "0-1"]
[Round "11"]
[TimeControl "180+2"]
[Date "2023.03.07"]
[WhiteClock "0:00:54"]
[BlackClock "0:00:19"]

1. e4 {[%clk 0:03:00]}  e5 {[%clk 0:02:56]} 2. Nf3 {[%clk 0:02:59]}  Nc6 {[%clk 0:02:57]} 3. Bb5 {[%clk 0:02:55]}  a6 {[%clk 0:02:57]} 4. Ba4 {[%clk 0:02:55]}  Nf6 {[%clk 0:02:57]} 5. O-O {[%clk 0:02:54]}  Be7 {[%clk 0:02:58]} 6. Re1 {[%clk 0:02:52]}  b5 {[%clk 0:02:58]} 7. Bb3 {[%clk 0:02:52]}  O-O {[%clk 0:02:59]} 8. a4 {[%clk 0:02:49]}  Bb7 {[%clk 0:02:54]} 9. d3 {[%clk 0:02:47]}  d6 {[%clk 0:02:43]} 10. Nc3 {[%clk 0:02:46]}  Na5 {[%clk 0:02:31]} 11. Ba2 {[%clk 0:02:45]}  b4 {[%clk 0:02:25]} 12. Ne2 {[%clk 0:02:43]}  c5 {[%clk 0:02:26]} 13. Ng3 {[%clk 0:02:43]}  Re8 {[%clk 0:02:23]} 14. c3 {[%clk 0:02:42]}  Bf8 {[%clk 0:02:13]} 15. d4 {[%clk 0:02:38]}  exd4 {[%clk 0:02:00]} 16. cxd4 {[%clk 0:02:37]}  c4 {[%clk 0:02:00]} 17. Bb1 {[%clk 0:02:35]}  Nb3 {[%clk 0:01:55]} 18. Ra2 {[%clk 0:02:33]}  Nxc1 {[%clk 0:01:52]} 19. Qxc1 {[%clk 0:02:32]}  Rc8 {[%clk 0:01:50]} 20. Ra1 {[%clk 0:02:31]}  g6 {[%clk 0:01:47]} 21. Qf4 {[%clk 0:02:27]}  Bg7 {[%clk 0:01:44]} 22. Ng5 {[%clk 0:02:21]}  a5 {[%clk 0:01:29]} 23. e5 {[%clk 0:02:06]}  dxe5 {[%clk 0:01:29]} 24. dxe5 {[%clk 0:02:06]}  h6 {[%clk 0:01:25]} 25. Nxf7 {[%clk 0:01:56]}  Kxf7 {[%clk 0:01:25]} 26. Be4 {[%clk 0:01:53]}  g5 {[%clk 0:00:32]} 27. Qf5 {[%clk 0:01:49]}  Bxe4 {[%clk 0:00:30]} 28. Nxe4 {[%clk 0:01:49]}  Qd7 {[%clk 0:00:27]} 29. Nd6+ {[%clk 0:01:45]}  Kg8 {[%clk 0:00:24]} 30. exf6 {[%clk 0:01:14]}  Qxf5 {[%clk 0:00:22]} 31. Nxf5 {[%clk 0:01:13]}  Bxf6 {[%clk 0:00:21]} 32. Nxh6+ {[%clk 0:01:10]}  Kh7 {[%clk 0:00:20]} 33. Nf7 {[%clk 0:01:08]}  Bxb2 {[%clk 0:00:20]} 34. Rad1 {[%clk 0:01:04]}  Rxe1+ {[%clk 0:00:20]} 35. Rxe1 {[%clk 0:01:04]}  c3 {[%clk 0:00:21]} 36. Nxg5+ {[%clk 0:01:04]}  Kg6 {[%clk 0:00:21]} 37. Nh3 {[%clk 0:00:54]}  c2 {[%clk 0:00:19]} 38. Nf4+ {[%clk 0:00:54]}  Kf5 {[%clk 0:00:19]} 39. Nd3 {[%clk 0:00:54]}  c1=Q {[%clk 0:00:19]} 0-1


[Site "https://www.chess.com"]

[Event "Titled Tuesday Blitz March 07 Early 2023"]
[White "Santos Flores, Alberto"]
[Black "Markus, Robert"]
[WhiteFideId "3601234"]
[BlackFideId "921637"]
[WhiteElo "2235"]
[BlackElo "2623"]
[Result "1-0"]
[Round "11"]
[TimeControl "180+2"]
[Date "2023.03.07"]
[WhiteClock "0:01:30"]
[BlackClock "0:00:26"]

1. e4 {[%clk 0:03:00]}  c5 {[%clk 0:02:53]} 2. Nf3 {[%clk 0:03:00]}  d6 {[%clk 0:02:46]} 3. d4 {[%clk 0:03:00]}  cxd4 {[%clk 0:02:45]} 4. Nxd4 {[%clk 0:03:01]}  Nf6 {[%clk 0:02:44]} 5. Nc3 {[%clk 0:03:01]}  a6 {[%clk 0:02:43]} 6. Be3 {[%clk 0:03:01]}  e5 {[%clk 0:02:42]} 7. Nb3 {[%clk 0:03:01]}  Be7 {[%clk 0:02:42]} 8. f3 {[%clk 0:03:01]}  O-O {[%clk 0:02:42]} 9. Qd2 {[%clk 0:03:01]}  Be6 {[%clk 0:02:42]} 10. O-O-O {[%clk 0:03:00]}  Nbd7 {[%clk 0:02:42]} 11. g4 {[%clk 0:03:00]}  b5 {[%clk 0:02:43]} 12. g5 {[%clk 0:03:00]}  b4 {[%clk 0:02:43]} 13. Ne2 {[%clk 0:03:00]}  Ne8 {[%clk 0:02:42]} 14. Kb1 {[%clk 0:02:59]}  a5 {[%clk 0:02:40]} 15. h4 {[%clk 0:02:58]}  a4 {[%clk 0:02:40]} 16. Nbc1 {[%clk 0:02:58]}  b3 {[%clk 0:02:37]} 17. cxb3 {[%clk 0:02:58]}  axb3 {[%clk 0:02:36]} 18. a3 {[%clk 0:02:59]}  d5 {[%clk 0:02:32]} 19. exd5 {[%clk 0:02:55]}  Bf5+ {[%clk 0:02:33]} 20. Nd3 {[%clk 0:02:55]}  Nd6 {[%clk 0:02:26]} 21. Bh3 {[%clk 0:02:53]}  Nc4 {[%clk 0:02:24]} 22. Qc1 {[%clk 0:02:49]}  Bxd3+ {[%clk 0:02:11]} 23. Rxd3 {[%clk 0:02:49]}  Rc8 {[%clk 0:02:12]} 24. Rc3 {[%clk 0:02:46]}  Nxe3 {[%clk 0:01:49]} 25. Qxe3 {[%clk 0:02:46]}  Rxc3 {[%clk 0:01:48]} 26. Nxc3 {[%clk 0:02:46]}  Nb6 {[%clk 0:01:44]} 27. Qxe5 {[%clk 0:02:40]}  Bd6 {[%clk 0:01:41]} 28. Qd4 {[%clk 0:02:40]}  Re8 {[%clk 0:01:32]} 29. Rc1 {[%clk 0:02:37]}  Be5 {[%clk 0:01:26]} 30. Qd3 {[%clk 0:02:36]}  Qa8 {[%clk 0:01:22]} 31. d6 {[%clk 0:02:31]}  Rd8 {[%clk 0:01:18]} 32. d7 {[%clk 0:02:31]}  Qb7 {[%clk 0:01:12]} 33. Rd1 {[%clk 0:02:10]}  Qc6 {[%clk 0:01:03]} 34. Ne4 {[%clk 0:02:09]}  Nc4 {[%clk 0:00:57]} 35. Rc1 {[%clk 0:02:04]}  Nxa3+ {[%clk 0:00:39]} 36. bxa3 {[%clk 0:02:04]}  Qa4 {[%clk 0:00:38]} 37. Rc8 {[%clk 0:02:01]}  Bc7 {[%clk 0:00:36]} 38. Kb2 {[%clk 0:01:37]}  Be5+ {[%clk 0:00:34]} 39. Nc3 {[%clk 0:01:31]}  Bc7 {[%clk 0:00:26]} 40. Nxa4 {[%clk 0:01:30]} 1-0


[Site "https://www.chess.com"]

[Event "Titled Tuesday Blitz March 07 Early 2023"]
[White "Bogaudinov, Rushan"]
[Black "Bilan, Danila"]
[WhiteFideId "4129288"]
[BlackFideId "24161918"]
[WhiteElo "1949"]
[BlackElo "2182"]
[Result "0-1"]
[Round "11"]
[TimeControl "180+2"]
[Date "2023.03.07"]
[WhiteClock "0:00:17"]
[BlackClock "0:00:06"]

1. e4 {[%clk 0:03:00]}  c6 {[%clk 0:02:58]} 2. d4 {[%clk 0:02:59]}  d5 {[%clk 0:02:58]} 3. e5 {[%clk 0:02:59]}  c5 {[%clk 0:02:58]} 4. dxc5 {[%clk 0:02:59]}  Nc6 {[%clk 0:02:58]} 5. Nf3 {[%clk 0:02:59]}  Bg4 {[%clk 0:02:57]} 6. Bb5 {[%clk 0:02:58]}  e6 {[%clk 0:02:55]} 7. Be3 {[%clk 0:02:57]}  Qa5+ {[%clk 0:02:49]} 8. Nc3 {[%clk 0:02:56]}  Ne7 {[%clk 0:02:39]} 9. a3 {[%clk 0:02:50]}  Nf5 {[%clk 0:02:30]} 10. b4 {[%clk 0:02:47]}  Qc7 {[%clk 0:02:21]} 11. O-O {[%clk 0:02:25]}  Be7 {[%clk 0:02:03]} 12. h3 {[%clk 0:02:12]}  Bxf3 {[%clk 0:01:50]} 13. Qxf3 {[%clk 0:02:13]}  d4 {[%clk 0:01:50]} 14. Ne4 {[%clk 0:02:08]}  dxe3 {[%clk 0:01:45]} 15. Nd6+ {[%clk 0:02:07]}  Bxd6 {[%clk 0:01:42]} 16. exd6 {[%clk 0:02:06]}  exf2+ {[%clk 0:01:24]} 17. Qxf2 {[%clk 0:02:05]}  Qd7 {[%clk 0:01:23]} 18. c3 {[%clk 0:01:58]}  O-O {[%clk 0:01:22]} 19. g4 {[%clk 0:01:54]}  Nh6 {[%clk 0:01:01]} 20. a4 {[%clk 0:01:43]}  Rac8 {[%clk 0:00:56]} 21. Qg2 {[%clk 0:01:34]}  Kh8 {[%clk 0:00:52]} 22. Rae1 {[%clk 0:01:33]}  Ng8 {[%clk 0:00:51]} 23. g5 {[%clk 0:01:27]}  b6 {[%clk 0:00:41]} 24. Re5 {[%clk 0:00:54]}  Qd8 {[%clk 0:00:17]} 25. Bxc6 {[%clk 0:00:52]}  bxc5 {[%clk 0:00:17]} 26. bxc5 {[%clk 0:00:51]}  f6 {[%clk 0:00:18]} 27. gxf6 {[%clk 0:00:48]}  Rxf6 {[%clk 0:00:10]} 28. Rfe1 {[%clk 0:00:46]}  Rg6 {[%clk 0:00:09]} 29. R1e3 {[%clk 0:00:19]}  Rxg2+ {[%clk 0:00:09]} 30. Kxg2 {[%clk 0:00:20]}  Rxc6 {[%clk 0:00:07]} 31. Rf3 {[%clk 0:00:18]}  Nf6 {[%clk 0:00:06]} 32. Rxe6 {[%clk 0:00:17]}  Rxc5 {[%clk 0:00:06]} 0-1


[Site "https://www.chess.com"]

[Event "Titled Tuesday Blitz March 07 Early 2023"]
[White "Ardila, Oscar Humberto"]
[Black "Hernandez Sanchez, Elvis De La Caridad"]
[WhiteFideId "4404742"]
[BlackFideId "6400353"]
[WhiteElo "1911"]
[BlackElo "2457"]
[Result "0-1"]
[Round "11"]
[TimeControl "180+2"]
[Date "2023.03.07"]
[WhiteClock "0:00:05"]
[BlackClock "0:00:12"]

1. d4 {[%clk 0:03:00]}  Nf6 {[%clk 0:02:59]} 2. c4 {[%clk 0:02:59]}  g6 {[%clk 0:02:59]} 3. Nc3 {[%clk 0:02:59]}  Bg7 {[%clk 0:02:58]} 4. Nf3 {[%clk 0:02:58]}  O-O {[%clk 0:02:58]} 5. e3 {[%clk 0:02:58]}  c5 {[%clk 0:02:57]} 6. Be2 {[%clk 0:02:57]}  cxd4 {[%clk 0:02:57]} 7. Nxd4 {[%clk 0:02:56]}  Nc6 {[%clk 0:02:45]} 8. Nxc6 {[%clk 0:02:50]}  bxc6 {[%clk 0:02:44]} 9. O-O {[%clk 0:02:50]}  Rb8 {[%clk 0:02:43]} 10. Qc2 {[%clk 0:02:49]}  d5 {[%clk 0:02:37]} 11. cxd5 {[%clk 0:02:45]}  cxd5 {[%clk 0:02:38]} 12. Rd1 {[%clk 0:02:39]}  Be6 {[%clk 0:02:29]} 13. Nb5 {[%clk 0:02:09]}  Bf5 {[%clk 0:02:21]} 14. Qa4 {[%clk 0:02:07]}  Bd7 {[%clk 0:01:59]} 15. Qa6 {[%clk 0:01:56]}  Rb6 {[%clk 0:01:51]} 16. Qa5 {[%clk 0:01:44]}  Rxb5 {[%clk 0:01:48]} 17. Qxd8 {[%clk 0:01:44]}  Rxd8 {[%clk 0:01:49]} 18. Bxb5 {[%clk 0:01:44]}  Bxb5 {[%clk 0:01:50]} 19. Bd2 {[%clk 0:01:36]}  Ne4 {[%clk 0:01:47]} 20. Ba5 {[%clk 0:01:36]}  Rc8 {[%clk 0:01:37]} 21. f3 {[%clk 0:01:35]}  Nd6 {[%clk 0:01:32]} 22. Rxd5 {[%clk 0:01:26]}  Bxb2 {[%clk 0:01:28]} 23. Rb1 {[%clk 0:01:24]}  Rc1+ {[%clk 0:01:21]} 24. Rxc1 {[%clk 0:01:24]}  Bxc1 {[%clk 0:01:22]} 25. Kf2 {[%clk 0:01:11]}  a6 {[%clk 0:01:22]} 26. Bb4 {[%clk 0:01:09]}  Nc4 {[%clk 0:01:18]} 27. Rd8+ {[%clk 0:01:04]}  Kg7 {[%clk 0:01:17]} 28. Bxe7 {[%clk 0:00:59]}  Bxe3+ {[%clk 0:01:17]} 29. Kg3 {[%clk 0:00:56]}  Bb6 {[%clk 0:01:10]} 30. Rd1 {[%clk 0:00:42]}  Ne3 {[%clk 0:01:10]} 31. Re1 {[%clk 0:00:36]}  Nf5+ {[%clk 0:01:05]} 32. Kh3 {[%clk 0:00:33]}  Bd7 {[%clk 0:00:59]} 33. g4 {[%clk 0:00:33]}  Nd4 {[%clk 0:00:54]} 34. Kg2 {[%clk 0:00:27]}  Bc6 {[%clk 0:00:51]} 35. Rb1 {[%clk 0:00:19]}  Ba5 {[%clk 0:00:34]} 36. g5 {[%clk 0:00:19]}  Nxf3 {[%clk 0:00:33]} 37. Bf6+ {[%clk 0:00:18]}  Kf8 {[%clk 0:00:32]} 38. Rb8+ {[%clk 0:00:18]}  Be8 {[%clk 0:00:31]} 39. Kxf3 {[%clk 0:00:18]}  Bc7 {[%clk 0:00:30]} 40. Ra8 {[%clk 0:00:17]}  a5 {[%clk 0:00:29]} 41. Ke4 {[%clk 0:00:18]}  Bb6 {[%clk 0:00:28]} 42. h4 {[%clk 0:00:17]}  Bc7 {[%clk 0:00:24]} 43. Kd5 {[%clk 0:00:17]}  Bb6 {[%clk 0:00:24]} 44. a4 {[%clk 0:00:16]}  Bc7 {[%clk 0:00:24]} 45. Kc5 {[%clk 0:00:15]}  Bg3 {[%clk 0:00:19]} 46. Kb6 {[%clk 0:00:10]}  Be1 {[%clk 0:00:19]} 47. Rc8 {[%clk 0:00:08]}  Bd2 {[%clk 0:00:15]} 48. Rb8 {[%clk 0:00:08]}  Be1 {[%clk 0:00:15]} 49. Ra8 {[%clk 0:00:08]}  Bd2 {[%clk 0:00:15]} 50. Rxa5 {[%clk 0:00:07]}  Bxa5+ {[%clk 0:00:14]} 51. Kxa5 {[%clk 0:00:08]}  Bc6 {[%clk 0:00:14]} 52. Kb4 {[%clk 0:00:07]}  Ke8 {[%clk 0:00:14]} 53. a5 {[%clk 0:00:08]}  Kd7 {[%clk 0:00:14]} 54. Kc5 {[%clk 0:00:08]}  Bf3 {[%clk 0:00:13]} 55. Kb6 {[%clk 0:00:08]}  Ke6 {[%clk 0:00:12]} 56. a6 {[%clk 0:00:07]}  h5 {[%clk 0:00:11]} 57. Kc7 {[%clk 0:00:05]}  Kf5 {[%clk 0:00:11]} 58. Kb8 {[%clk 0:00:03]}  Kg4 {[%clk 0:00:11]} 59. a7 {[%clk 0:00:03]}  Kxh4 {[%clk 0:00:12]} 60. a8=Q {[%clk 0:00:03]}  Bxa8 {[%clk 0:00:12]} 61. Kxa8 {[%clk 0:00:04]}  Kg4 {[%clk 0:00:11]} 62. Kb7 {[%clk 0:00:04]}  h4 {[%clk 0:00:11]} 63. Kc7 {[%clk 0:00:02]}  h3 {[%clk 0:00:12]} 64. Be5 {[%clk 0:00:03]}  Kxg5 {[%clk 0:00:12]} 65. Kd7 {[%clk 0:00:03]}  f5 {[%clk 0:00:11]} 66. Bh2 {[%clk 0:00:04]}  Kg4 {[%clk 0:00:11]} 67. Ke6 {[%clk 0:00:05]}  f4 {[%clk 0:00:11]} 68. Ke5 {[%clk 0:00:05]}  f3 {[%clk 0:00:12]} 69. Ke4 {[%clk 0:00:05]}  f2 {[%clk 0:00:12]} 0-1


[Site "https://www.chess.com"]

[Event "Titled Tuesday Blitz March 07 Early 2023"]
[White "Kozin, Yuri"]
[Black "Valgmae, Toomas"]
[WhiteFideId "4129920"]
[BlackFideId "4502523"]
[WhiteElo "2493"]
[BlackElo "2170"]
[Result "0-1"]
[Round "11"]
[TimeControl "180+2"]
[Date "2023.03.07"]
[WhiteClock "0:01:15"]
[BlackClock "0:01:33"]

1. e4 {[%clk 0:03:00]}  d6 {[%clk 0:02:59]} 2. d4 {[%clk 0:03:01]}  Nf6 {[%clk 0:03:00]} 3. Nc3 {[%clk 0:03:01]}  g6 {[%clk 0:03:01]} 4. Be3 {[%clk 0:03:00]}  c6 {[%clk 0:03:01]} 5. Qd2 {[%clk 0:02:59]}  b5 {[%clk 0:03:02]} 6. Bd3 {[%clk 0:02:59]}  Nbd7 {[%clk 0:03:02]} 7. h4 {[%clk 0:02:58]}  Ng4 {[%clk 0:03:00]} 8. Bg5 {[%clk 0:02:49]}  h6 {[%clk 0:02:56]} 9. Bf4 {[%clk 0:02:49]}  e5 {[%clk 0:02:53]} 10. dxe5 {[%clk 0:02:43]}  Ndxe5 {[%clk 0:02:48]} 11. f3 {[%clk 0:02:36]}  Nxd3+ {[%clk 0:02:47]} 12. Qxd3 {[%clk 0:02:33]}  Ne5 {[%clk 0:02:47]} 13. Qe2 {[%clk 0:02:24]}  Bg7 {[%clk 0:02:45]} 14. Nh3 {[%clk 0:02:17]}  O-O {[%clk 0:02:41]} 15. Nf2 {[%clk 0:02:16]}  b4 {[%clk 0:02:31]} 16. Ncd1 {[%clk 0:02:14]}  a5 {[%clk 0:02:29]} 17. Nd3 {[%clk 0:02:10]}  Ba6 {[%clk 0:02:29]} 18. N1f2 {[%clk 0:02:10]}  c5 {[%clk 0:02:19]} 19. Rd1 {[%clk 0:02:04]}  Qe7 {[%clk 0:02:12]} 20. h5 {[%clk 0:01:56]}  g5 {[%clk 0:02:11]} 21. Bc1 {[%clk 0:01:56]}  c4 {[%clk 0:02:09]} 22. Nxe5 {[%clk 0:01:55]}  Bxe5 {[%clk 0:01:59]} 23. b3 {[%clk 0:01:35]}  cxb3 {[%clk 0:01:56]} 24. Nd3 {[%clk 0:01:34]}  bxa2 {[%clk 0:01:55]} 25. Be3 {[%clk 0:01:17]}  a1=Q {[%clk 0:01:48]} 26. Rxa1 {[%clk 0:01:17]}  Bxa1 {[%clk 0:01:48]} 27. O-O {[%clk 0:01:18]}  Bg7 {[%clk 0:01:44]} 28. Rd1 {[%clk 0:01:15]}  d5 {[%clk 0:01:33]} 0-1


[Site "https://www.chess.com"]